fUST/lending_fUST_20251228
["ID","MTS","AMOUNT","RATE_DAILY","PERIOD"]
[399935623,1766892671160,165.61349326,0.00026813,120]
[399935624,1766892819467,-500.0,0.00013273,2]
[399935625,1766892819490,-145.4552542,0.00013273,2]
[399935626,1766892822505,-298.96227438,0.00013273,2]
[399935627,1766892825355,-55.58247142,0.00013273,2]
[399935628,1766892825379,-292.608456,0.00013273,2]
[399935629,1766892827496,-207.391544,0.00013273,2]
[399935630,1766892827520,-71.12110877,0.00013273,2]
[399935631,1766892830105,-335.2996606,0.00013273,2]
[399935632,1766892832365,-93.57923063,0.00013273,2]
[399935633,1766892832393,-93.07326831,0.00013273,2]
[399935634,1766892836278,-237.26708111,0.00013273,2]
[399935635,1766892839222,525.92967257,0.0001317,2]
[399935636,1766892840166,-169.65965058,0.00013273,2]
[399935637,1766892840189,-144.25725715,0.00013273,2]
[399935638,1766892841712,-355.74274285,0.00013273,2]
[399935639,1766892841736,-189.86290131,0.00013273,2]
[399935640,1766892848386,418.48785601,0.0001317,2]
[399935641,1766892863835,-310.13709869,0.00013273,2]
[399935642,1766892863859,-294.29169865,0.00013273,2]
[399935643,1766892866461,-205.70830135,0.00013273,2]
[399935644,1766892866483,-11.749324,0.00013273,2]
[399935645,1766892869569,-349.60434305,0.00013273,2]
[399935646,1766892871718,-138.64633295,0.00013273,2]
[399935647,1766892871741,-107.32052666,0.00013273,2]
[399935648,1766892873863,-372.9325939,0.00013273,2]
[399935649,1766892876030,-19.74687944,0.00013273,2]
[399935650,1766892876052,-227.1619515,0.00013273,2]
[399935651,1766892879181,-236.76731322,0.00013273,2]
[399935652,1766892880749,-36.07073528,0.00013273,2]
[399935653,1766892880770,-156.35539312,0.00013273,2]
[399935654,1766892882481,-151.3,0.00013273,2]
[399935655,1766892884006,-192.34460688,0.00013273,2]
[399935656,1766892884027,-49.83235132,0.00013273,2]
[399935657,1766892887570,-383.24146944,0.00013273,2]
[399935658,1766892889775,-66.92617924,0.00013273,2]
[399935659,1766892889798,-132.11042962,0.00013273,2]
[399935660,1766892892913,-262.17450981,0.00013273,2]
[399935662,1766893083401,295.61,9.99e-05,2]
[399935663,1766893543944,999.0,0.00012703,2]
[399935664,1766893650088,-174.83516596,0.00013271,2]
[399935665,1766893748090,-1025.0,0.00013271,2]
[399935666,1766893748326,-214.76411307,0.00013272,2]
[399935667,1766893748349,-608.0,0.00013272,2]
[399935668,1766893748375,-300.0,0.00013272,2]
[399935669,1766893748396,-899.08066282,0.00013272,2]
[399935670,1766893772096,-300.91933718,0.00013272,2]
[399935671,1766893772118,-300.0,0.00013272,2]
[399935672,1766893772139,-500.0,0.00013273,2]
[399935673,1766893772160,-500.0,0.00013273,2]
[399935674,1766893772192,-500.0,0.00013273,2]
[399935675,1766893772219,-500.0,0.00013273,2]
[399935676,1766893772240,-548.26670754,0.00013273,2]
[399935677,1766893772260,-500.0,0.00013273,2]
[399935678,1766893772281,-500.0,0.00013273,2]
[399935679,1766893772304,-567.41101631,0.00013536,2]
[399935680,1766893772326,-221.93224729,0.00013536,2]
[399935681,1766893772349,-500.0,0.00013536,2]
[399935682,1766893772371,-412.12255771,0.00013536,2]
[399935683,1766893772394,-500.0,0.00013536,2]
[399935684,1766893772418,-500.0,0.00013536,2]
[399935685,1766893772441,-383.58271366,0.00013536,2]
[399935686,1766893772464,-300.0,0.00013537,2]
[399935687,1766893772487,-300.0,0.00013537,2]
[399935688,1766893772509,-300.0,0.00013537,2]
[399935689,1766893772532,-300.0,0.00013537,2]
[399935690,1766893772554,-300.0,0.00013537,2]
[399935691,1766893772576,-300.0,0.00013537,2]
[399935692,1766893772600,-300.0,0.00013537,2]
[399935693,1766893772622,-300.0,0.00013537,2]
[399935694,1766893772647,-300.0,0.00013537,2]
[399935695,1766893772670,-300.0,0.00013537,2]
[399935696,1766893772696,-300.0,0.00013537,2]
[399935697,1766893772720,-300.0,0.00013537,2]
[399935698,1766893772744,-300.0,0.00013537,2]
[399935699,1766893772779,-300.0,0.00013537,2]
[399935700,1766893772802,-300.0,0.00013537,2]
[399935701,1766893772824,-174.60076174,0.00013537,2]
[399935702,1766893772846,-73.05751271,0.00013699,2]
[399935727,1766893832511,-714.03414129,0.00013699,2]
[399935728,1766893832522,-615.0,0.00013699,2]
[399935729,1766893832532,-600.0,0.00013807,2]
[399935730,1766893832542,-500.0,0.00014117,2]
[399935731,1766893832552,-563.52849841,0.00014117,2]
[399935732,1766893832563,-464.46011604,0.00014117,2]
[399935733,1766893832572,-500.0,0.00014117,2]
[399935734,1766893832583,-500.0,0.00014117,2]
[399935735,1766893832594,-209.28696818,0.00014117,2]
[399935736,1766893832604,-598.20973972,0.00014118,2]
[399935737,1766893832617,-513.15983465,0.00014118,2]
[399935771,1766893838667,-2023.66636474,0.00014118,2]
[399935810,1766893841119,-0.01596457,0.00014118,2]
[399935814,1766893846839,-494.293216,0.00014118,2]
[399935815,1766894048602,164.31810178,0.00014214,120]
[399935816,1766894120568,-524.94962166,0.00013273,2]
[399935817,1766894120591,-500.0,0.00013273,2]
[399935818,1766894120616,-500.0,0.00013273,2]
[399935819,1766894120640,-158.3372417,0.00013273,2]
[399935820,1766894120664,-465.17585689,0.00013273,2]
[399935821,1766894120688,-500.0,0.00013273,2]
[399935822,1766894120713,-500.0,0.00013273,2]
[399935823,1766894120738,-292.08848555,0.00013273,2]
[399935824,1766894120761,-620.2295911,0.00013273,2]
[399935825,1766894120784,-338.86264041,0.00013273,2]
[399935826,1766894120806,-459.09456368,0.00013273,2]
[399935827,1766894120828,-493.43909038,0.00013273,2]
[399935828,1766894120854,-300.0,0.00013537,2]
[399935829,1766894120881,-300.0,0.00013537,2]
[399935830,1766894120908,-300.0,0.00013537,2]
[399935831,1766894120935,-300.0,0.00013537,2]
[399935832,1766894120962,-300.0,0.00013537,2]
[399935833,1766894120988,-300.0,0.00013537,2]
[399935834,1766894121016,-300.0,0.00013537,2]
[399935835,1766894121043,-300.0,0.00013537,2]
[399935836,1766894121070,-300.0,0.00013537,2]
[399935837,1766894121096,-300.0,0.00013537,2]
[399935838,1766894121124,-300.0,0.00013537,2]
[399935839,1766894121151,-300.0,0.00013537,2]
[399935840,1766894121178,-300.0,0.00013537,2]
[399935841,1766894121206,-300.0,0.00013537,2]
[399935842,1766894121233,-300.0,0.00013537,2]
[399935843,1766894121256,-219.58146182,0.00013537,2]
[399935844,1766894121282,-500.0,0.00013806,2]
[399935845,1766894121308,-549.0445581,0.00013806,2]
[399935846,1766894121334,-500.0,0.00013806,2]
[399935847,1766894121360,-500.0,0.00013806,2]
[399935848,1766894121386,-500.0,0.00013806,2]
[399935849,1766894121412,-500.0,0.00013806,2]
[399935850,1766894121439,-507.54436389,0.00013806,2]
[399935851,1766894121466,-500.0,0.00013806,2]
[399935852,1766894121492,-500.0,0.00013806,2]
[399935853,1766894121518,-500.0,0.00013806,2]
[399935854,1766894121545,-500.0,0.00013806,2]
[399935855,1766894121572,-600.0,0.00013807,2]
[399935856,1766894121599,-157.71323175,0.00014117,2]
[399935857,1766894121623,-153.09535595,0.00014117,2]
[399935858,1766894121648,-226.50667937,0.00014117,2]
[399935859,1766894121674,-500.0,0.00014117,2]
[399935860,1766894121701,-250.0,0.00014117,2]
[399935861,1766894121725,-158.55467555,0.00014117,2]
[399935862,1766894121748,-500.0,0.00014118,2]
[399935863,1766894121771,-734.76531106,0.00014118,2]
[399935864,1766894121793,-6091.01727114,0.00014118,2]
[399935865,1766894145365,-499.15076129,0.00013273,2]
[399935866,1766894145391,-190.92736112,0.00013872,2]
[399935867,1766894145415,-23669.90279328,0.00014118,2]
[399935868,1766894145441,-210.4688308,0.00014259,2]
[399935869,1766894145465,-429.55025351,0.00014701,2]
[399935870,1766894149397,-7604.56390739,0.00014701,2]
[399935871,1766894149423,-193.00811744,0.00015173,2]
[399935872,1766894149449,-347.41461139,0.00015173,2]
[399935873,1766894149474,-617.6259758,0.00015173,2]
[399935874,1766894149500,-965.04058719,0.00015173,2]
[399935875,1766894149527,-540.06,0.000152,2]
[399935876,1766894149554,-540.06,0.000155,2]
[399935877,1766894149579,-210.7849997,0.00015533,2]
[399935878,1766894149602,-275.45904029,0.00015533,2]
[399935879,1766894149626,-540.06,0.000158,2]
[399935880,1766894149649,-500.0,0.00015872,2]
[399935881,1766894149673,-500.0,0.00015872,2]
[399935882,1766894149696,-157.508371,0.00015872,2]
[399935883,1766894149719,-500.0,0.00015872,2]
[399935884,1766894149744,-500.0,0.00015872,2]
[399935885,1766894149768,-150.0,0.00015872,2]
[399935886,1766894149791,-500.0,0.00015872,2]
[399935887,1766894149815,-299.78726453,0.00015872,2]
[399935888,1766894149839,-150.0,0.00015872,2]
[399935889,1766894149862,-150.0,0.00015872,2]
[399935890,1766894149886,-218.3259869,0.00015872,2]
[399935891,1766894149914,-150.0,0.00015872,2]
[399935892,1766894149937,-211.60180126,0.00015872,2]
[399935893,1766894149962,-500.0,0.00015872,2]
[399935894,1766894149987,-500.0,0.00015872,2]
[399935895,1766894150010,-159.58336159,0.00015872,2]
[399935896,1766894150034,-159.0,0.000159,2]
[399935897,1766894150060,-264.60815043,0.00015972,2]
[399935898,1766894150084,-302.40931478,0.00015972,2]
[399935899,1766894150108,-472.51455435,0.00015972,2]
[399935900,1766894150136,-500.0,0.00016009,2]
[399935901,1766894150160,-500.0,0.00016009,2]
[399935902,1766894150185,-500.0,0.00016009,2]
[399935903,1766894150209,-150.0,0.00016009,2]
[399935904,1766894150232,-584.46380241,0.00016009,2]
[399935905,1766894150255,-522.42805548,0.00016009,2]
[399935906,1766894150278,-150.0,0.00016009,2]
[399935907,1766894150300,-166.23828449,0.00016009,2]
[399935908,1766894150323,-150.0,0.00016009,2]
[399935909,1766894150346,-500.0,0.00016009,2]
[399935910,1766894150372,-500.0,0.00016009,2]
[399935911,1766894150395,-495.82627253,0.00016035,2]
[399935912,1766894150419,-1216.30955972,0.00016048,2]
[399935913,1766894150443,-540.2858,0.00016093,2]
[399935914,1766894150467,-153.439953,0.00016093,2]
[399935915,1766894150492,-151.0,0.00016093,2]
[399935916,1766894150517,-40.59222833,0.00016093,2]
[399935917,1766894151661,-110.40777167,0.00016093,2]
[399935918,1766894151695,-24889.59222833,0.00016093,2]
[399935919,1766894153342,-264.075359,0.00013651,2]
[399935920,1766894153376,-24735.924641,0.00016093,2]
[399935921,1766894154565,-23461.98406374,0.00016093,2]
[399935922,1766894154593,-540.06,0.000161,2]
[399935923,1766894154620,-240.14369686,0.00016146,2]
[399935924,1766894154646,-500.0,0.00016146,2]
[399935925,1766894154673,-257.8122394,0.00016146,2]
[399935926,1766894155967,-242.1877606,0.00016146,2]
[399935927,1766894155993,-178.06202836,0.00016146,2]
[399935928,1766894156019,-295.54315754,0.00016146,2]
[399935929,1766894156044,-150.0,0.00016146,2]
[399935930,1766894156069,-172.91364763,0.00016146,2]
[399935931,1766894156093,-500.0,0.00016146,2]
[399935932,1766894156122,-600.0,0.00016188,2]
[399935933,1766894156153,-1145.3406043,0.0001619,2]
[399935934,1766894156183,-501.75534275,0.00016192,2]
[399935935,1766894156209,-3000.0,0.000162,2]
[399935936,1766894156236,-3000.0,0.0001621,2]
[399935937,1766894156499,-3000.0,0.0001622,2]
[399935938,1766894156526,-3000.0,0.0001623,2]
[399935939,1766894156551,-3000.0,0.0001624,2]
[399935940,1766894156577,-3000.0,0.0001625,2]
[399935941,1766894156602,-248.35322035,0.00016259,2]
[399935942,1766894156626,-2965.84423847,0.0001626,2]
[399935943,1766894157782,-34.15576153,0.0001626,2]
[399935944,1766894157807,-3000.0,0.0001627,2]
[399935945,1766894157830,-3000.0,0.0001628,2]
[399935946,1766894157854,-500.0,0.00016283,2]
[399935947,1766894157878,-500.0,0.00016283,2]
[399935948,1766894157901,-150.0,0.00016283,2]
[399935949,1766894157925,-548.27321401,0.00016283,2]
[399935950,1766894157949,-151.0,0.00016283,2]
[399935951,1766894157974,-188.565093,0.00016283,2]
[399935952,1766894157999,-3000.0,0.0001629,2]
[399935953,1766894158023,-3000.0,0.000163,2]
[399935954,1766894158047,-3000.0,0.0001631,2]
[399935955,1766894158072,-3000.0,0.0001632,2]
[399935956,1766894158097,-3000.0,0.0001633,2]
[399935957,1766894158121,-1928.00593146,0.0001634,2]
[399935958,1766894159766,-1071.99406854,0.0001634,2]
[399935959,1766894159792,-689.78,0.0001635,2]
[399935960,1766894159816,-3000.0,0.0001635,2]
[399935961,1766894159840,-3000.0,0.0001636,2]
[399935962,1766894159863,-3000.0,0.0001637,2]
[399935963,1766894159887,-3000.0,0.0001638,2]
[399935964,1766894159910,-753.0,0.0001639,3]
[399935965,1766894159934,-3000.0,0.0001639,2]
[399935966,1766894159959,-3000.0,0.000164,2]
[399935967,1766894159986,-540.06,0.000164,2]
[399935968,1766894160014,-188.25,0.000164,3]
[399935969,1766894160038,-564.75,0.000164,3]
[399935970,1766894160064,-376.5,0.0001641,3]
[399935971,1766894160090,-151.0,0.0001641,2]
[399935972,1766894160114,-2664.66593146,0.0001641,2]
[399935973,1766894162503,-335.33406854,0.0001641,2]
[399935974,1766894162537,-500.0,0.0001642,2]
[399935975,1766894162584,-500.0,0.0001642,2]
[399935976,1766894162619,-180.35533761,0.0001642,2]
[399935977,1766894162643,-3000.0,0.0001642,2]
[399935978,1766894162667,-3000.0,0.0001643,2]
[399935979,1766894162692,-151.0,0.0001644,2]
[399935980,1766894162716,-3000.0,0.0001644,2]
[399935981,1766894162740,-3000.0,0.0001645,2]
[399935982,1766894162764,-3000.0,0.0001646,2]
[399935983,1766894162788,-151.0,0.0001647,2]
[399935984,1766894162813,-3000.0,0.0001647,2]
[399935985,1766894162836,-3000.0,0.0001648,2]
[399935986,1766894162860,-2182.31059385,0.0001649,2]
[399935987,1766894164689,-1000.0,0.000151,2]
[399935988,1766894164714,-817.68940615,0.0001649,2]
[399935989,1766894164739,-3000.0,0.000165,2]
[399935990,1766894164763,-3000.0,0.0001651,2]
[399935991,1766894164787,-3000.0,0.0001652,2]
[399935992,1766894164810,-3000.0,0.0001653,2]
[399935993,1766894164834,-240.89714251,0.00016537,2]
[399935994,1766894164858,-881.46892894,0.00016537,2]
[399935995,1766894164882,-3000.0,0.0001654,2]
[399935996,1766894164905,-3000.0,0.0001655,2]
[399935997,1766894164930,-160.0,0.0001655,2]
[399935998,1766894164954,-500.0,0.00016557,2]
[399935999,1766894164978,-500.0,0.00016557,2]
[399936000,1766894165006,-2899.9445224,0.0001656,2]
[399936001,1766894167085,-100.0554776,0.0001656,2]
[399936002,1766894167111,-3000.0,0.0001657,2]
[399936003,1766894167138,-3000.0,0.0001658,2]
[399936004,1766894167167,-3000.0,0.0001659,2]
[399936005,1766894167192,-3000.0,0.000166,2]
[399936006,1766894167218,-3000.0,0.0001661,2]
[399936007,1766894167242,-3000.0,0.0001662,2]
[399936008,1766894167267,-3000.0,0.0001663,2]
[399936009,1766894167291,-3000.0,0.0001664,2]
[399936010,1766894167315,-899.9445224,0.0001665,2]
[399936011,1766894167344,-2100.0554776,0.0001665,2]
[399936012,1766894167370,-3000.0,0.0001666,2]
[399936013,1766894167395,-3000.0,0.0001667,2]
[399936014,1766894167420,-3000.0,0.0001668,2]
[399936015,1766894167447,-3000.0,0.0001669,2]
[399936016,1766894167471,-500.0,0.00016694,2]
[399936017,1766894167495,-500.0,0.00016694,2]
[399936018,1766894167520,-3000.0,0.000167,2]
[399936019,1766894167544,-3000.0,0.0001671,2]
[399936020,1766894167729,-3000.0,0.0001672,2]
[399936021,1766894167754,-899.9445224,0.0001673,2]
[399936022,1766894212090,-400.0,0.000152,2]
[399936023,1766894231679,-501.17314753,0.00013273,2]
[399936024,1766894231712,-138.08586714,0.00013273,2]
[399936025,1766894233126,-154.35356217,0.00013273,2]
[399936026,1766894235831,-181.71698637,0.00013273,2]
[399936027,1766894237121,529.5302675,0.00013172,2]
[399936028,1766894261718,181.71698637,0.00013172,2]
[399936029,1766894291661,-25.84358432,0.00013273,2]
[399936030,1766894291689,-358.72204832,0.00013273,2]
[399936031,1766894411152,-141.27795168,0.00013273,2]
[399936032,1766894411175,-100.65058009,0.00013273,2]
[399936033,1766894413294,-399.34941991,0.00013273,2]
[399936034,1766894413316,-100.65058009,0.00013273,2]
[399936035,1766894415368,-349.6937808,0.00013273,2]
[399936036,1766894416863,-49.65563911,0.00013273,2]
[399936037,1766894416884,-105.90436089,0.00013273,2]
[399936038,1766894418371,-155.48519452,0.00013273,2]
[399936039,1766894419918,-228.77305958,0.00013273,2]
[399936040,1766894423327,-9.83738501,0.00013273,2]
[399936041,1766894423352,-225.78260002,0.00013273,2]
[399936042,1766894423374,-69.52913075,0.00013273,2]
[399936043,1766894427706,655.56,0.00013172,2]
[399936044,1766894437183,1039.10115068,0.00013172,2]
[399936045,1766894711063,-484.6012755,0.00013273,2]
[399936046,1766894711087,-59.25515896,0.00013273,2]
[399936047,1766894715283,-159.30123623,0.00013273,2]
[399936048,1766894721436,703.15767069,0.00013172,2]
[399936049,1766894727780,-319.91447406,0.00013273,2]
[399936050,1766894727803,-680.08552594,0.00013699,2]
[399936051,1766894738003,-166.68338506,0.00013699,2]
[399936052,1766894738025,-211.17192832,0.00014237,2]
[399936061,1766894953152,-636.69563053,0.0001525,2]
[399936062,1766894953173,-206.94848976,0.0001535,2]
[399936063,1766894953194,-755.08656606,0.00016179,2]
[399936064,1766894953214,-369.69397777,0.00016179,2]
[399936065,1766894953235,-459.42044678,0.00016238,2]
[399936066,1766894953256,-376.40178518,0.00016298,2]
[399936067,1766894953276,-169.13900049,0.00016298,2]
[399936068,1766894953299,-500.83826265,0.00016379,2]
[399936069,1766894953321,-602.65126837,0.00016379,2]
[399936070,1766894953343,-564.29263364,0.00016379,2]
[399936071,1766894953364,-500.0,0.00016379,2]
[399936072,1766894953384,-372.83136024,0.00016379,2]
[399936073,1766894953405,-500.0,0.00016379,2]
[399936074,1766894953426,-400.4013675,0.00016379,2]
[399936075,1766894953448,-500.0,0.00016379,2]
[399936076,1766894953468,-500.0,0.00016379,2]
[399936077,1766894953489,-500.0,0.00016379,2]
[399936078,1766894953509,-500.0,0.00016379,2]
[399936079,1766894953529,-563.62267856,0.00016379,2]
[399936080,1766894953549,-500.0,0.00016379,2]
[399936081,1766894953568,-368.73285553,0.00016379,2]
[399936082,1766894953593,-2056.6050307,0.0001638,2]
[399936083,1766894958081,-1961.54774827,0.0001638,2]
[399936084,1766894978839,-166.89,0.00016438,4]
[399936085,1766894982680,-280.0,0.0001726,5]
[399936086,1766894982709,-160.0,0.00017647,3]
[399936087,1766894986407,-170.30555883,0.00018228,3]
[399936088,1766894991728,-160.0,0.00019396,4]
[399936089,1766894991754,-160.0,0.00019396,5]
[399936090,1766894991779,-454.09136318,0.00019845,4]
[399936111,1766895031668,-404.05,0.000151,2]
[399936113,1766895031680,-595.95,0.000151,2]
[399936116,1766895031690,-455.81,0.000152,2]
[399936117,1766895031700,-644.0,0.000155,2]
[399936118,1766895031710,-455.81,0.000155,2]
[399936119,1766895031720,-455.81,0.000158,2]
[399936120,1766895031731,-172.96149317,0.0001606,2]
[399936121,1766895031741,-455.81,0.000161,2]
[399936122,1766895031753,-1377.29520147,0.00016298,2]
[399936123,1766895031771,-19265.62255583,0.0001638,2]
[399936124,1766895031780,-455.81,0.000164,2]
[399936125,1766895031795,-421.33481888,0.00016695,2]
[399936126,1766895031804,-455.81,0.000167,2]
[399936127,1766895031815,-300.0,0.00016707,2]
[399936128,1766895031826,-300.0,0.00016707,2]
[399936129,1766895031835,-300.0,0.00016707,2]
[399936130,1766895031845,-300.0,0.00016707,2]
[399936131,1766895031855,-300.0,0.00016707,2]
[399936132,1766895031866,-300.0,0.00016707,2]
[399936133,1766895031875,-300.0,0.00016707,2]
[399936134,1766895031886,-300.0,0.00016707,2]
[399936135,1766895031897,-300.0,0.00016707,2]
[399936136,1766895031906,-300.0,0.00016707,2]
[399936137,1766895031916,-300.0,0.00016707,2]
[399936138,1766895031926,-300.0,0.00016707,2]
[399936139,1766895031936,-300.0,0.00016707,2]
[399936140,1766895031946,-300.0,0.00016707,2]
[399936141,1766895031956,-300.0,0.00016707,2]
[399936142,1766895031966,-500.0,0.00016726,2]
[399936143,1766895031976,-500.0,0.00016726,2]
[399936144,1766895031987,-2100.0554776,0.0001673,2]
[399936145,1766895031999,-3000.0,0.0001674,2]
[399936146,1766895032013,-3000.0,0.0001675,2]
[399936147,1766895032023,-3000.0,0.0001676,2]
[399936148,1766895032033,-3000.0,0.0001677,2]
[399936149,1766895032043,-4892.888979,0.0001678,2]
[399936150,1766895032053,-500.0,0.00016863,2]
[399936151,1766895032063,-500.0,0.00016863,2]
[399936152,1766895032072,-500.0,0.00017,2]
[399936153,1766895032082,-500.0,0.00017,2]
[399936154,1766895032092,-250.84296372,0.00017,2]
[399936155,1766895032101,-455.81,0.00017,2]
[399936156,1766895032115,-600.0,0.0001704,2]
[399936157,1766895032125,-500.0,0.00017137,2]
[399936158,1766895032135,-324.00542313,0.00017137,2]
[399936159,1766895032144,-500.0,0.00017274,2]
[399936160,1766895032154,-455.81,0.000173,2]
[399936161,1766895032164,-1041.66666667,0.00017315,2]
[399936162,1766895032173,-244.19921792,0.0001735,2]
[399936163,1766895032183,-222.56941027,0.00017411,2]
[399936164,1766895032193,-455.81,0.000176,2]
[399936165,1766895032203,-455.81,0.000179,2]
[399936166,1766895032212,-455.81,0.000182,2]
[399936167,1766895032222,-111171.65584642,0.000184,2]
[399936205,1766895037919,-500.0,0.00016706,2]
[399936207,1766895037930,-500.0,0.00016706,2]
[399936209,1766895037940,-296.63759489,0.00016706,2]
[399936211,1766895037949,-500.0,0.00016706,2]
[399936213,1766895037959,-421.46723631,0.00016706,2]
[399936215,1766895037969,-500.0,0.00016706,2]
[399936217,1766895037979,-500.0,0.00016706,2]
[399936219,1766895037989,-310.61817858,0.00016706,2]
[399936221,1766895037999,-500.0,0.00016706,2]
[399936223,1766895038009,-500.0,0.00016706,2]
[399936225,1766895038019,-4329.65936841,0.000184,2]
[399936228,1766895038032,-10521.17056281,0.000184,2]
[399936230,1766895038044,-1964.87957539,0.000184,2]
[399936232,1766895038056,-7361.77808006,0.000184,2]
[399936234,1766895038068,-1140.62200724,0.000184,2]
[399936236,1766895038081,-833.69008447,0.000184,2]
[399936239,1766895038093,-905.78757059,0.000184,2]
[399936241,1766895038108,-1618.48555285,0.000184,2]
[399936243,1766895038120,-418.49770858,0.000184,2]
[399936333,1766895039967,-6080.2649987,0.000184,2]
[399936355,1766895040173,-3e-08,0.000184,2]
[399936358,1766895040189,-42231.04781085,0.000184,2]
[399936360,1766895040200,-455.81,0.000186,2]
[399936362,1766895040210,-2161.0,0.00018653,2]
[399936364,1766895040220,-633.0,0.00018653,2]
[399936366,1766895040230,-720.0,0.00018744,2]
[399936368,1766895040239,-302.72757545,0.000189,2]
[399936370,1766895040250,-302.75782099,0.000189,2]
[399936372,1766895040259,-455.81,0.000189,2]
[399936374,1766895040270,-419.544,0.00018964,2]
[399936376,1766895040280,-500.0,0.00019,2]
[399936378,1766895040289,-304.14575069,0.0001904,2]
[399936380,1766895040299,-302.72757545,0.00019089,2]
[399936382,1766895040308,-302.75782099,0.00019089,2]
[399936384,1766895040318,-178.32,0.000192,2]
[399936386,1766895040327,-166.2,0.000192,2]
[399936388,1766895040337,-455.81,0.000192,2]
[399936390,1766895040346,-302.72757545,0.00019278,2]
[399936392,1766895040356,-302.75782099,0.00019278,2]
[399936394,1766895040366,-281.44994607,0.0001935,2]
[399936396,1766895040376,-302.72757545,0.00019467,2]
[399936398,1766895040385,-302.75782099,0.00019467,2]
[399936400,1766895040395,-455.81,0.000195,2]
[399936402,1766895040405,-302.72757545,0.00019656,2]
[399936404,1766895040415,-152.42385992,0.00019656,2]
[399936406,1766895040424,-455.81,0.000198,2]
[399936408,1766895040434,-1058.0,0.0002,2]
[399936410,1766895040443,-14639.0,0.0002,2]
[399936412,1766895040453,-210.00651371,0.0002,2]
[399936414,1766895040463,-198.255179,0.0002,2]
[399936416,1766895040472,-151.0,0.0002,2]
[399936417,1766895040481,-151.000001,0.0002,2]
[399936419,1766895040492,-1055.258506,0.0002,2]
[399936421,1766895040504,-1055.258506,0.0002,2]
[399936423,1766895040513,-1055.258506,0.0002,2]
[399936425,1766895040523,-1055.258506,0.0002,2]
[399936427,1766895040532,-151.0,0.0002,2]
[399936429,1766895040542,-151.0,0.0002,2]
[399936431,1766895040553,-151.0,0.0002,2]
[399936432,1766895040563,-151.0,0.0002,2]
[399936433,1766895040574,-160.0,0.00020014,2]
[399936434,1766895040584,-454.09136318,0.00020034,4]
[399936435,1766895040593,-164.13,0.000201,2]
[399936436,1766895040603,-455.81,0.000201,2]
[399936437,1766895040612,-846.768911,0.00020187,2]
[399936438,1766895040621,-454.09136318,0.00020223,4]
[399936439,1766895040631,-455.81,0.000204,2]
[399936440,1766895040640,-454.09136318,0.00020412,4]
[399936441,1766895040653,-1055.258506,0.00020412,2]
[399936442,1766895040663,-1055.258506,0.00020412,2]
[399936443,1766895040672,-1055.258506,0.00020412,2]
[399936444,1766895040681,-1055.258506,0.00020412,2]
[399936445,1766895040691,-260.0,0.00020562,2]
[399936446,1766895040701,-184.0103854,0.00020575,2]
[399936447,1766895040711,-184.0103854,0.00020575,2]
[399936448,1766895040720,-184.0103854,0.00020575,2]
[399936449,1766895040729,-184.0103854,0.00020575,2]
[399936450,1766895040738,-184.0103854,0.00020575,2]
[399936451,1766895040748,-188.1705184,0.00020575,2]
[399936452,1766895040758,-184.0103854,0.00020575,2]
[399936453,1766895040768,-184.0103854,0.00020575,2]
[399936455,1766895040777,-454.4694324,0.00020601,4]
[399936457,1766895040787,-864.0,0.00020619,2]
[399936459,1766895040797,-455.81,0.000207,2]
[399936461,1766895040807,-184.0103854,0.00020904,2]